[Event "Early-Titled-Tuesday-Blitz-March-19-2024"]
[Site "Chess.com"]
[Date "2024.03.19"]
[Round "3"]
[White "JiiHart"]
[Black "BallottiLuca"]
[Result "1-0"]
[WhiteElo "2209"]
[BlackElo "2391"]
[TimeControl "180+1"]
[EndTime "8:29:41 PDT"]
[Termination "JiiHart won on time"]

1. e4 {[%clk 0:03:00.9]} 1... d5 {[%clk 0:02:58.2]} 2. exd5 {[%clk 0:03:00.6]}
2... Nf6 {[%clk 0:02:58.5]} 3. d4 {[%clk 0:03:00.7]} 3... Nxd5 {[%clk 0:02:57]}
4. c4 {[%clk 0:03:00.7]} 4... Nb6 {[%clk 0:02:56.2]} 5. Nc3 {[%clk 0:03:00.1]}
5... e5 {[%clk 0:02:54.8]} 6. dxe5 {[%clk 0:02:56.9]} 6... Qxd1+ {[%clk
0:02:52.8]} 7. Nxd1 {[%clk 0:02:55.8]} 7... Nc6 {[%clk 0:02:52.1]} 8. Nf3 {[%clk
0:02:53.5]} 8... Bg4 {[%clk 0:02:48.6]} 9. Be2 {[%clk 0:02:52.2]} 9... O-O-O
{[%clk 0:02:47.6]} 10. Bf4 {[%clk 0:02:48]} 10... Bb4+ {[%clk 0:02:45.4]} 11.
Kf1 {[%clk 0:02:47.8]} 11... Rhe8 {[%clk 0:02:41.9]} 12. a3 {[%clk 0:02:39.3]}
12... Bc5 {[%clk 0:02:23.6]} 13. Ne3 {[%clk 0:02:05.8]} 13... Bxf3 {[%clk
0:02:17.4]} 14. gxf3 {[%clk 0:02:05.6]} 14... Nxe5 {[%clk 0:02:16.7]} 15. Rg1
{[%clk 0:01:33.1]} 15... g6 {[%clk 0:02:09.5]} 16. b4 {[%clk 0:01:04.7]} 16...
Bxe3 {[%clk 0:02:07.8]} 17. fxe3 {[%clk 0:01:02.2]} 17... Nbxc4 {[%clk
0:02:01.5]} 18. Rc1 {[%clk 0:00:42.8]} 18... Nd2+ {[%clk 0:01:49.2]} 19. Kf2
{[%clk 0:00:42]} 19... c6 {[%clk 0:01:42.9]} 20. b5 {[%clk 0:00:41.3]} 20... Kd7
{[%clk 0:01:13.7]} 21. Rgd1 {[%clk 0:00:38.3]} 21... Ke6 {[%clk 0:01:12.9]} 22.
Bxe5 {[%clk 0:00:33]} 22... Kxe5 {[%clk 0:01:13.8]} 23. bxc6 {[%clk 0:00:33]}
23... bxc6 {[%clk 0:01:14.7]} 24. Rxc6 {[%clk 0:00:32.2]} 24... Re6 {[%clk
0:00:45]} 25. Rc7 {[%clk 0:00:28.1]} 25... Rf6 {[%clk 0:00:31.6]} 26. Rc2 {[%clk
0:00:23.5]} 26... Ne4+ {[%clk 0:00:31.4]} 27. Ke1 {[%clk 0:00:20.1]} 27... Rxd1+
{[%clk 0:00:32.3]} 28. Bxd1 {[%clk 0:00:18.4]} 28... Nd6 {[%clk 0:00:31.3]} 29.
Rc5+ {[%clk 0:00:17.9]} 29... Ke6 {[%clk 0:00:31.2]} 30. Bb3+ {[%clk 0:00:18.3]}
30... Kd7 {[%clk 0:00:29.9]} 31. Ra5 {[%clk 0:00:18.5]} 31... Nc8 {[%clk
0:00:27.7]} 32. Rd5+ {[%clk 0:00:17.5]} 32... Kc7 {[%clk 0:00:26.7]} 33. Ba4
{[%clk 0:00:17]} 33... Rxf3 {[%clk 0:00:24.5]} 34. Ke2 {[%clk 0:00:16]} 34...
Rf6 {[%clk 0:00:23.7]} 35. e4 {[%clk 0:00:15.4]} 35... Nb6 {[%clk 0:00:21.9]}
36. Rc5+ {[%clk 0:00:15.6]} 36... Kb7 {[%clk 0:00:21.1]} 37. Bb3 {[%clk
0:00:12.7]} 37... Rf4 {[%clk 0:00:20.9]} 38. Ke3 {[%clk 0:00:12.6]} 38... Rf1
{[%clk 0:00:20.7]} 39. a4 {[%clk 0:00:12.4]} 39... f5 {[%clk 0:00:19]} 40. e5
{[%clk 0:00:12]} 40... Re1+ {[%clk 0:00:18.3]} 41. Kf4 {[%clk 0:00:12.5]} 41...
Re4+ {[%clk 0:00:13.6]} 42. Kg5 {[%clk 0:00:12.2]} 42... Nd7 {[%clk 0:00:12.9]}
43. Bd5+ {[%clk 0:00:11.8]} 43... Kb8 {[%clk 0:00:10.2]} 44. Rb5+ {[%clk
0:00:11.9]} 44... Kc8 {[%clk 0:00:08]} 45. Bxe4 {[%clk 0:00:12.2]} 45... fxe4
{[%clk 0:00:08.9]} 46. e6 {[%clk 0:00:11.7]} 46... Nb6 {[%clk 0:00:08.7]} 47.
Kf4 {[%clk 0:00:09.8]} 47... Kc7 {[%clk 0:00:06.5]} 48. a5 {[%clk 0:00:09.7]}
48... Nc8 {[%clk 0:00:04.4]} 49. Rc5+ {[%clk 0:00:07.1]} 49... Kd8 {[%clk
0:00:04.5]} 50. Kxe4 {[%clk 0:00:06.4]} 50... Ne7 {[%clk 0:00:02]} 51. Ke5
{[%clk 0:00:05.3]} 51... h5 {[%clk 0:00:01.4]} 52. Kf6 {[%clk 0:00:05]} 1-0

[Event "Early-Titled-Tuesday-Blitz-March-19-2024"]
[Site "Chess.com"]
[Date "2024.03.19"]
[Round "3"]
[White "DmitriiZakurdaev"]
[Black "igorknyazev"]
[Result "1-0"]
[WhiteElo "2432"]
[BlackElo "2213"]
[TimeControl "180+1"]
[EndTime "8:29:43 PDT"]
[Termination "DmitriiZakurdaev won on time"]

1. d4 {[%clk 0:03:00.9]} 1... Nf6 {[%clk 0:02:59.3]} 2. c4 {[%clk 0:03:00.3]}
2... c5 {[%clk 0:02:59.7]} 3. d5 {[%clk 0:03:00.3]} 3... b5 {[%clk 0:03:00.3]}
4. cxb5 {[%clk 0:03:00.3]} 4... a6 {[%clk 0:03:00.8]} 5. bxa6 {[%clk 0:03:01.2]}
5... Bxa6 {[%clk 0:03:01]} 6. Nc3 {[%clk 0:03:02.1]} 6... g6 {[%clk 0:03:00.8]}
7. e4 {[%clk 0:03:02.7]} 7... d6 {[%clk 0:03:00.7]} 8. Be2 {[%clk 0:03:00.5]}
8... Bxe2 {[%clk 0:02:58.7]} 9. Qxe2 {[%clk 0:03:00.3]} 9... Bg7 {[%clk
0:02:59.6]} 10. Nf3 {[%clk 0:03:00.8]} 10... O-O {[%clk 0:03:00.5]} 11. O-O
{[%clk 0:03:01.2]} 11... Qa5 {[%clk 0:03:00.4]} 12. Re1 {[%clk 0:03:00.9]} 12...
Ng4 {[%clk 0:03:00.3]} 13. Bd2 {[%clk 0:02:59.7]} 13... Nd7 {[%clk 0:02:55.6]}
14. Nb5 {[%clk 0:02:51.2]} 14... Qa6 {[%clk 0:02:41.7]} 15. Bc3 {[%clk
0:02:49.9]} 15... Nge5 {[%clk 0:02:33.4]} 16. a4 {[%clk 0:02:41.8]} 16... Rab8
{[%clk 0:02:24.1]} 17. Nxe5 {[%clk 0:02:31.5]} 17... Bxe5 {[%clk 0:02:13.3]} 18.
Bxe5 {[%clk 0:02:29.2]} 18... Nxe5 {[%clk 0:02:12.8]} 19. f4 {[%clk 0:02:29.3]}
19... Nd7 {[%clk 0:02:11.3]} 20. e5 {[%clk 0:02:29.4]} 20... dxe5 {[%clk
0:02:04]} 21. fxe5 {[%clk 0:02:30.3]} 21... Nb6 {[%clk 0:02:00.3]} 22. d6 {[%clk
0:02:00.3]} 22... exd6 {[%clk 0:01:48.9]} 23. Nxd6 {[%clk 0:02:01.2]} 23... Qxe2
{[%clk 0:01:48.6]} 24. Rxe2 {[%clk 0:02:01.3]} 24... Rfd8 {[%clk 0:01:43.8]} 25.
a5 {[%clk 0:02:01]} 25... Nd7 {[%clk 0:01:39.7]} 26. a6 {[%clk 0:01:49.4]} 26...
Nxe5 {[%clk 0:01:37.2]} 27. a7 {[%clk 0:01:48.5]} 27... Ra8 {[%clk 0:01:36.7]}
28. Rxe5 {[%clk 0:01:46.8]} 28... Rxd6 {[%clk 0:01:36.3]} 29. Rxc5 {[%clk
0:01:47.4]} 29... Rb6 {[%clk 0:01:30]} 30. Ra2 {[%clk 0:01:42.1]} 30... Kg7
{[%clk 0:01:25.2]} 31. Rca5 {[%clk 0:01:30.3]} 31... h5 {[%clk 0:01:20.9]} 32.
Kf2 {[%clk 0:01:27.6]} 32... f5 {[%clk 0:01:13.8]} 33. Ra6 {[%clk 0:01:09.7]}
33... Rb3 {[%clk 0:01:09.1]} 34. Ke2 {[%clk 0:01:09.6]} 34... h4 {[%clk
0:01:07.4]} 35. Kd2 {[%clk 0:01:06]} 35... h3 {[%clk 0:01:06.6]} 36. g3 {[%clk
0:00:56.6]} 36... Kh6 {[%clk 0:00:56]} 37. Kc2 {[%clk 0:00:53.6]} 37... Rf3
{[%clk 0:00:55.3]} 38. b4 {[%clk 0:00:52.6]} 38... f4 {[%clk 0:00:28.7]} 39.
gxf4 {[%clk 0:00:47.7]} 39... Rxf4 {[%clk 0:00:26.1]} 40. b5 {[%clk 0:00:47.3]}
40... Rb4 {[%clk 0:00:24.9]} 41. b6 {[%clk 0:00:43.2]} 41... Kh5 {[%clk
0:00:24.9]} 42. R2a5+ {[%clk 0:00:38.5]} 42... g5 {[%clk 0:00:24.3]} 43. Kc3
{[%clk 0:00:33.5]} 43... Rb1 {[%clk 0:00:21.7]} 44. Ra1 {[%clk 0:00:33.4]} 44...
Rb5 {[%clk 0:00:18.9]} 45. Kc4 {[%clk 0:00:33.8]} 45... Rb2 {[%clk 0:00:18.8]}
46. R1a2 {[%clk 0:00:22.6]} 46... Rb1 {[%clk 0:00:18.4]} 47. Kc5 {[%clk
0:00:20.7]} 47... g4 {[%clk 0:00:14.6]} 48. Kc6 {[%clk 0:00:19]} 48... Rf1
{[%clk 0:00:07.2]} 49. b7 {[%clk 0:00:14.6]} 49... Rf6+ {[%clk 0:00:07]} 50. Kd5
{[%clk 0:00:15]} 50... Re8 {[%clk 0:00:05.6]} 51. b8=Q {[%clk 0:00:13.8]} 51...
Rf5+ {[%clk 0:00:02.9]} 52. Kd4 {[%clk 0:00:14.2]} 52... Rxb8 {[%clk 0:00:01.5]}
53. axb8=Q {[%clk 0:00:13.7]} 53... g3 {[%clk 0:00:01.2]} 54. Qxg3 {[%clk
0:00:12.7]} 54... Rg5 {[%clk 0:00:01.1]} 55. Qxg5+ {[%clk 0:00:12]} 1-0

[Event "Early-Titled-Tuesday-Blitz-March-19-2024"]
[Site "Chess.com"]
[Date "2024.03.19"]
[Round "3"]
[White "HamedWafa4"]
[Black "Polish_fighter3000"]
[Result "0-1"]
[WhiteElo "2827"]
[BlackElo "3160"]
[TimeControl "180+1"]
[EndTime "8:29:46 PDT"]
[Termination "Polish_fighter3000 won by resignation"]

1. e4 {[%clk 0:03:00.9]} 1... c5 {[%clk 0:02:58.2]} 2. Nf3 {[%clk 0:02:57.3]}
2... Nc6 {[%clk 0:02:58.4]} 3. Bb5 {[%clk 0:02:55.7]} 3... g6 {[%clk 0:02:56.5]}
4. Bxc6 {[%clk 0:02:55.1]} 4... dxc6 {[%clk 0:02:55.5]} 5. O-O {[%clk
0:02:54.1]} 5... Bg7 {[%clk 0:02:50.4]} 6. d3 {[%clk 0:02:54]} 6... e5 {[%clk
0:02:45.6]} 7. Be3 {[%clk 0:02:53.4]} 7... b6 {[%clk 0:02:44]} 8. a4 {[%clk
0:02:53]} 8... a5 {[%clk 0:02:41.4]} 9. Na3 {[%clk 0:02:52.7]} 9... Qc7 {[%clk
0:02:39.7]} 10. Nc4 {[%clk 0:02:52.9]} 10... Be6 {[%clk 0:02:38.1]} 11. b3
{[%clk 0:02:49.5]} 11... f6 {[%clk 0:02:19]} 12. Nfd2 {[%clk 0:02:44.1]} 12...
Nh6 {[%clk 0:02:15.5]} 13. h3 {[%clk 0:02:41.5]} 13... g5 {[%clk 0:01:57.7]} 14.
Re1 {[%clk 0:02:33.6]} 14... Nf7 {[%clk 0:01:57.5]} 15. Nf1 {[%clk 0:02:33.5]}
15... h5 {[%clk 0:01:57.2]} 16. Ng3 {[%clk 0:02:33.2]} 16... h4 {[%clk
0:01:49.2]} 17. Nf5 {[%clk 0:02:32.7]} 17... Bf8 {[%clk 0:01:45.1]} 18. Qe2
{[%clk 0:01:58.7]} 18... O-O-O {[%clk 0:01:44.4]} 19. Bd2 {[%clk 0:01:48.6]}
19... Kb7 {[%clk 0:01:44]} 20. Nfe3 {[%clk 0:01:43]} 20... Nh6 {[%clk
0:01:42.2]} 21. Reb1 {[%clk 0:01:34.5]} 21... Rg8 {[%clk 0:01:37]} 22. f3 {[%clk
0:01:34.8]} 22... Nf7 {[%clk 0:01:25.6]} 23. c3 {[%clk 0:01:34.8]} 23... Qd7
{[%clk 0:01:25.4]} 24. b4 {[%clk 0:01:31.5]} 24... cxb4 {[%clk 0:01:20.5]} 25.
cxb4 {[%clk 0:01:31.5]} 25... Qxd3 {[%clk 0:01:20.9]} 26. Qxd3 {[%clk
0:01:30.3]} 26... Rxd3 {[%clk 0:01:21.8]} 27. bxa5 {[%clk 0:01:25]} 27... Bc5
{[%clk 0:01:19.6]} 28. Kf1 {[%clk 0:01:13.4]} 28... Bxe3 {[%clk 0:01:07.4]} 29.
Nxe3 {[%clk 0:01:08.7]} 29... Rxd2 {[%clk 0:01:06.5]} 30. Rxb6+ {[%clk
0:01:09.2]} 30... Kc7 {[%clk 0:01:00.9]} 31. Rc1 {[%clk 0:01:09.5]} 31... Rd6
{[%clk 0:00:45.3]} 32. Nc2 {[%clk 0:01:03.4]} 32... Ra8 {[%clk 0:00:43.4]} 33.
Nb4 {[%clk 0:01:01.2]} 33... Rxa5 {[%clk 0:00:35.8]} 34. Rbxc6+ {[%clk
0:01:01.1]} 34... Kd7 {[%clk 0:00:31.3]} 35. Rc7+ {[%clk 0:00:58.4]} 35... Ke8
{[%clk 0:00:30.7]} 36. Ra1 {[%clk 0:00:33.7]} 36... Nd8 {[%clk 0:00:26.3]} 37.
Ke2 {[%clk 0:00:27.4]} 37... Rd7 {[%clk 0:00:21.5]} 38. Rc3 {[%clk 0:00:25.5]}
38... Rd4 {[%clk 0:00:19.9]} 39. Nd3 {[%clk 0:00:22.3]} 39... Raxa4 {[%clk
0:00:17.4]} 40. Rxa4 {[%clk 0:00:22]} 40... Rxa4 {[%clk 0:00:18.3]} 41. Nc5
{[%clk 0:00:22.6]} 41... Ra2+ {[%clk 0:00:18.1]} 42. Kf1 {[%clk 0:00:23.2]}
42... Ke7 {[%clk 0:00:18.1]} 43. Nd3 {[%clk 0:00:20.6]} 43... Rd2 {[%clk
0:00:16.4]} 44. Nb4 {[%clk 0:00:21]} 44... Kf7 {[%clk 0:00:12.8]} 45. Rc7+
{[%clk 0:00:20.6]} 45... Kg6 {[%clk 0:00:12.6]} 46. Nc2 {[%clk 0:00:19]} 46...
Rd7 {[%clk 0:00:09.4]} 47. Rc3 {[%clk 0:00:17.1]} 47... Rd6 {[%clk 0:00:09.6]}
48. Ne3 {[%clk 0:00:17.4]} 48... Nc6 {[%clk 0:00:10.2]} 49. Ra3 {[%clk
0:00:15.8]} 49... Nd4 {[%clk 0:00:09.8]} 50. g4 {[%clk 0:00:14.4]} 50... hxg3
{[%clk 0:00:09.2]} 51. Kg2 {[%clk 0:00:15]} 51... Ne2 {[%clk 0:00:08.7]} 52. Ra2
{[%clk 0:00:14.1]} 52... Nf4+ {[%clk 0:00:09.3]} 53. Kxg3 {[%clk 0:00:14.7]}
53... Bxh3 {[%clk 0:00:09.7]} 54. Ra8 {[%clk 0:00:13.6]} 54... Be6 {[%clk
0:00:08.8]} 55. Nf5 {[%clk 0:00:06.5]} 55... Bxf5 {[%clk 0:00:08]} 56. exf5+
{[%clk 0:00:07.1]} 56... Kxf5 {[%clk 0:00:08.9]} 57. Rf8 {[%clk 0:00:05.9]}
57... Rd2 {[%clk 0:00:08.1]} 0-1

[Event "Early-Titled-Tuesday-Blitz-March-19-2024"]
[Site "Chess.com"]
[Date "2024.03.19"]
[Round "3"]
[White "TV27"]
[Black "JonasEilenberg"]
[Result "0-1"]
[WhiteElo "2254"]
[BlackElo "2583"]
[TimeControl "180+1"]
[EndTime "8:29:48 PDT"]
[Termination "JonasEilenberg won by checkmate"]

1. f4 {[%clk 0:02:59.2]} 1... d5 {[%clk 0:02:58.9]} 2. e3 {[%clk 0:02:55.2]}
2... g6 {[%clk 0:02:59.1]} 3. Nf3 {[%clk 0:02:48.6]} 3... Bg7 {[%clk 0:02:59.3]}
4. Be2 {[%clk 0:02:46.9]} 4... Nf6 {[%clk 0:02:59.7]} 5. O-O {[%clk 0:02:46.1]}
5... O-O {[%clk 0:03:00]} 6. d3 {[%clk 0:02:38.2]} 6... c5 {[%clk 0:02:55]} 7.
Qe1 {[%clk 0:02:31.4]} 7... Nc6 {[%clk 0:02:54.9]} 8. Bd2 {[%clk 0:02:26.8]}
8... Re8 {[%clk 0:02:44]} 9. Ne5 {[%clk 0:02:21.3]} 9... Qc7 {[%clk 0:02:37.3]}
10. Nxc6 {[%clk 0:02:14.7]} 10... Qxc6 {[%clk 0:02:37.3]} 11. Bf3 {[%clk
0:02:02]} 11... e5 {[%clk 0:02:25]} 12. fxe5 {[%clk 0:02:00.8]} 12... Rxe5
{[%clk 0:02:25.9]} 13. Nc3 {[%clk 0:02:00.2]} 13... Qe8 {[%clk 0:01:57.8]} 14.
Qf2 {[%clk 0:01:55.1]} 14... Bg4 {[%clk 0:01:53.5]} 15. Rae1 {[%clk 0:01:52]}
15... Bxf3 {[%clk 0:01:48.1]} 16. gxf3 {[%clk 0:01:51.7]} 16... Rd8 {[%clk
0:01:48.8]} 17. e4 {[%clk 0:01:47]} 17... dxe4 {[%clk 0:01:45.1]} 18. fxe4
{[%clk 0:01:46.7]} 18... Rh5 {[%clk 0:01:34.1]} 19. Qg2 {[%clk 0:01:28.2]} 19...
Qe6 {[%clk 0:01:25]} 20. Rf3 {[%clk 0:01:04.4]} 20... Ng4 {[%clk 0:01:18.7]} 21.
h3 {[%clk 0:00:45.1]} 21... Bd4+ {[%clk 0:01:17.1]} 22. Kf1 {[%clk 0:00:36.1]}
22... Ne5 {[%clk 0:01:14]} 23. Rg3 {[%clk 0:00:32.8]} 23... c4 {[%clk
0:00:48.7]} 24. Nd5 {[%clk 0:00:28.9]} 24... cxd3 {[%clk 0:00:42.2]} 25. cxd3
{[%clk 0:00:28.6]} 25... Nc6 {[%clk 0:00:20.5]} 26. Bg5 {[%clk 0:00:25.9]} 26...
Rd7 {[%clk 0:00:15.2]} 27. Rf3 {[%clk 0:00:20.2]} 27... Rxd5 {[%clk 0:00:11.6]}
28. exd5 {[%clk 0:00:19.8]} 28... Qxd5 {[%clk 0:00:12.1]} 29. Bf6 {[%clk
0:00:10.1]} 29... Rf5 {[%clk 0:00:07.9]} 30. Bxd4 {[%clk 0:00:08]} 30... Qxf3+
{[%clk 0:00:06.5]} 31. Qxf3 {[%clk 0:00:08.1]} 31... Rxf3+ {[%clk 0:00:07.4]}
32. Ke2 {[%clk 0:00:08.4]} 32... Nxd4+ {[%clk 0:00:08.3]} 33. Kd2 {[%clk
0:00:08.4]} 33... Ne6 {[%clk 0:00:06.8]} 34. Kc3 {[%clk 0:00:08.6]} 34... Rxh3
{[%clk 0:00:07.1]} 35. Kc4 {[%clk 0:00:08.4]} 35... Rh4+ {[%clk 0:00:07.7]} 36.
d4 {[%clk 0:00:09.3]} 36... Rxd4+ {[%clk 0:00:07.3]} 37. Kb5 {[%clk 0:00:08.5]}
37... Rd2 {[%clk 0:00:07.9]} 38. Rc1 {[%clk 0:00:08.7]} 38... Rxb2+ {[%clk
0:00:08]} 39. Kc4 {[%clk 0:00:09.2]} 39... Rxa2 {[%clk 0:00:08.9]} 40. Kd5
{[%clk 0:00:09.7]} 40... Ra5+ {[%clk 0:00:08.7]} 41. Kd6 {[%clk 0:00:09.9]}
41... Rc5 {[%clk 0:00:09.2]} 42. Rd1 {[%clk 0:00:09.3]} 42... h5 {[%clk
0:00:08.9]} 43. Ke7 {[%clk 0:00:09.5]} 43... h4 {[%clk 0:00:08.6]} 44. Kf6
{[%clk 0:00:09.7]} 44... Rf5+ {[%clk 0:00:08.5]} 45. Ke7 {[%clk 0:00:09.7]}
45... h3 {[%clk 0:00:09.4]} 46. Rh1 {[%clk 0:00:07.6]} 46... Rh5 {[%clk
0:00:09.5]} 47. Rd1 {[%clk 0:00:06.4]} 47... h2 {[%clk 0:00:09.8]} 48. Rh1
{[%clk 0:00:06.4]} 48... Nd4 {[%clk 0:00:08.2]} 49. Kf6 {[%clk 0:00:07.3]} 49...
Nf5 {[%clk 0:00:08.2]} 50. Rd1 {[%clk 0:00:03.4]} 50... h1=Q {[%clk 0:00:05.2]}
51. Rd8+ {[%clk 0:00:03.6]} 51... Kh7 {[%clk 0:00:05.7]} 52. Rh8+ {[%clk
0:00:03.4]} 52... Kxh8 {[%clk 0:00:05.3]} 53. Kxf7 {[%clk 0:00:04.2]} 53... Qd5+
{[%clk 0:00:05.2]} 54. Kf6 {[%clk 0:00:04]} 54... Qd6+ {[%clk 0:00:05.5]} 55.
Kf7 {[%clk 0:00:04]} 55... Nh6+ {[%clk 0:00:05.9]} 56. Ke8 {[%clk 0:00:03.9]}
56... Re5# {[%clk 0:00:06]} 0-1

[Event "Early-Titled-Tuesday-Blitz-March-19-2024"]
[Site "Chess.com"]
[Date "2024.03.19"]
[Round "3"]
[White "Preobrazhenska_D2011"]
[Black "Kotlyar_K"]
[Result "1-0"]
[WhiteElo "2470"]
[BlackElo "2646"]
[TimeControl "180+1"]
[EndTime "8:29:51 PDT"]
[Termination "Preobrazhenska_D2011 won on time"]

1. e4 {[%clk 0:02:59.7]} 1... e5 {[%clk 0:02:48.9]} 2. Nf3 {[%clk 0:02:59.8]}
2... Nc6 {[%clk 0:02:49.5]} 3. Bb5 {[%clk 0:03:00.2]} 3... a6 {[%clk 0:02:48.9]}
4. Ba4 {[%clk 0:03:00.5]} 4... Nf6 {[%clk 0:02:49.3]} 5. O-O {[%clk 0:03:00.8]}
5... Be7 {[%clk 0:02:48.2]} 6. Re1 {[%clk 0:02:59.5]} 6... b5 {[%clk 0:02:48.7]}
7. Bb3 {[%clk 0:02:58.9]} 7... O-O {[%clk 0:02:49.3]} 8. h3 {[%clk 0:02:56]}
8... d6 {[%clk 0:02:45.3]} 9. c3 {[%clk 0:02:55.9]} 9... Nb8 {[%clk 0:02:44.7]}
10. d4 {[%clk 0:02:55]} 10... Nbd7 {[%clk 0:02:44.5]} 11. Bc2 {[%clk 0:02:52.8]}
11... Bb7 {[%clk 0:02:43.2]} 12. Nbd2 {[%clk 0:02:52.5]} 12... c5 {[%clk
0:02:42.6]} 13. d5 {[%clk 0:02:52.6]} 13... c4 {[%clk 0:02:42.7]} 14. b3 {[%clk
0:02:50]} 14... cxb3 {[%clk 0:02:35.7]} 15. axb3 {[%clk 0:02:49.5]} 15... Rc8
{[%clk 0:02:34.1]} 16. c4 {[%clk 0:02:44.1]} 16... Re8 {[%clk 0:02:12.2]} 17.
Bb2 {[%clk 0:02:36.8]} 17... Nb6 {[%clk 0:02:03.1]} 18. Qe2 {[%clk 0:02:34.4]}
18... g6 {[%clk 0:01:46.4]} 19. Bd3 {[%clk 0:02:21.5]} 19... b4 {[%clk
0:01:37.7]} 20. c5 {[%clk 0:01:26.9]} 20... Rxc5 {[%clk 0:01:35.4]} 21. Bxa6
{[%clk 0:01:26.3]} 21... Bxa6 {[%clk 0:01:23.9]} 22. Rxa6 {[%clk 0:01:26.1]}
22... Rc2 {[%clk 0:01:16.5]} 23. Rb1 {[%clk 0:01:24]} 23... Nfd7 {[%clk
0:00:55.6]} 24. Qd1 {[%clk 0:01:04.9]} 24... Rc8 {[%clk 0:00:52.1]} 25. Ra7
{[%clk 0:00:56.6]} 25... Nc5 {[%clk 0:00:44.2]} 26. Qe2 {[%clk 0:00:53.5]} 26...
Ra8 {[%clk 0:00:43.4]} 27. Rba1 {[%clk 0:00:48.8]} 27... Rxa7 {[%clk 0:00:41.6]}
28. Rxa7 {[%clk 0:00:49.7]} 28... Qb8 {[%clk 0:00:40.1]} 29. Ra1 {[%clk
0:00:46.5]} 29... Nbd7 {[%clk 0:00:33.4]} 30. Qe3 {[%clk 0:00:39.1]} 30... Qb7
{[%clk 0:00:31.2]} 31. Nc4 {[%clk 0:00:39.1]} 31... Ra8 {[%clk 0:00:30.3]} 32.
Na5 {[%clk 0:00:34.7]} 32... Qb5 {[%clk 0:00:25.9]} 33. Nc6 {[%clk 0:00:32.4]}
33... Rxa1+ {[%clk 0:00:25]} 34. Bxa1 {[%clk 0:00:33.3]} 34... Bf6 {[%clk
0:00:21.3]} 35. Nd2 {[%clk 0:00:20.8]} 35... Qa6 {[%clk 0:00:20.6]} 36. Qe1
{[%clk 0:00:15.2]} 36... Qa2 {[%clk 0:00:21.1]} 37. Qd1 {[%clk 0:00:14.4]} 37...
Bg5 {[%clk 0:00:17.6]} 38. Nc4 {[%clk 0:00:08.9]} 38... Qxb3 {[%clk 0:00:17.6]}
39. Qxb3 {[%clk 0:00:08]} 39... Nxb3 {[%clk 0:00:18.5]} 40. Bb2 {[%clk
0:00:08.4]} 40... Nbc5 {[%clk 0:00:15.4]} 41. Nxd6 {[%clk 0:00:08.7]} 41... b3
{[%clk 0:00:15.6]} 42. Kf1 {[%clk 0:00:06.3]} 42... Nd3 {[%clk 0:00:15.8]} 43.
Nc4 {[%clk 0:00:06.1]} 43... Nxb2 {[%clk 0:00:15.1]} 44. Nxb2 {[%clk 0:00:07]}
44... Bc1 {[%clk 0:00:15.6]} 45. Nd3 {[%clk 0:00:05.1]} 45... b2 {[%clk
0:00:16.3]} 46. Nxb2 {[%clk 0:00:05]} 46... Bxb2 {[%clk 0:00:17.2]} 47. Ke2
{[%clk 0:00:04.6]} 47... f5 {[%clk 0:00:17.4]} 48. f3 {[%clk 0:00:04.9]} 48...
fxe4 {[%clk 0:00:17.5]} 49. fxe4 {[%clk 0:00:05.8]} 1-0

[Event "Early-Titled-Tuesday-Blitz-March-19-2024"]
[Site "Chess.com"]
[Date "2024.03.19"]
[Round "3"]
[White "tptagain"]
[Black "ahkashefi2800"]
[Result "1-0"]
[WhiteElo "2948"]
[BlackElo "2565"]
[TimeControl "180+1"]
[EndTime "8:29:53 PDT"]
[Termination "tptagain won by checkmate"]

1. Nf3 {[%clk 0:03:00.9]} 1... d5 {[%clk 0:02:51.8]} 2. e3 {[%clk 0:03:01]} 2...
Nf6 {[%clk 0:02:51.6]} 3. c4 {[%clk 0:03:01.1]} 3... c6 {[%clk 0:02:51.8]} 4.
Nc3 {[%clk 0:03:01.4]} 4... Bg4 {[%clk 0:02:46.7]} 5. h3 {[%clk 0:03:01.2]} 5...
Bxf3 {[%clk 0:02:46.5]} 6. Qxf3 {[%clk 0:03:00.9]} 6... e6 {[%clk 0:02:47.1]} 7.
d4 {[%clk 0:02:57.6]} 7... Nbd7 {[%clk 0:02:46.6]} 8. cxd5 {[%clk 0:02:54.8]}
8... exd5 {[%clk 0:02:45.8]} 9. Bd3 {[%clk 0:02:53.2]} 9... Bd6 {[%clk
0:02:45.7]} 10. g4 {[%clk 0:02:53.1]} 10... O-O {[%clk 0:02:41.6]} 11. g5 {[%clk
0:02:52.4]} 11... Ne8 {[%clk 0:02:41.4]} 12. h4 {[%clk 0:02:50.8]} 12... Nc7
{[%clk 0:02:37.8]} 13. Bd2 {[%clk 0:02:48.6]} 13... a6 {[%clk 0:02:32.3]} 14.
O-O-O {[%clk 0:02:47.6]} 14... Nb5 {[%clk 0:02:32.6]} 15. Qf5 {[%clk 0:02:38.6]}
15... g6 {[%clk 0:02:29.6]} 16. Qh3 {[%clk 0:02:35.3]} 16... Re8 {[%clk
0:02:09]} 17. h5 {[%clk 0:02:34]} 17... Nf8 {[%clk 0:02:09]} 18. hxg6 {[%clk
0:02:24.6]} 18... fxg6 {[%clk 0:02:08.8]} 19. f4 {[%clk 0:02:09.9]} 19... Qd7
{[%clk 0:01:58.6]} 20. f5 {[%clk 0:02:07.3]} 20... Nxc3 {[%clk 0:01:41.3]} 21.
Bxc3 {[%clk 0:02:06.3]} 21... Re7 {[%clk 0:01:19.3]} 22. Kb1 {[%clk 0:01:50.7]}
22... Rae8 {[%clk 0:01:15.8]} 23. e4 {[%clk 0:01:51.2]} 23... Rxe4 {[%clk
0:01:06.6]} 24. Bxe4 {[%clk 0:01:51.4]} 24... Rxe4 {[%clk 0:01:06.6]} 25. Rdf1
{[%clk 0:01:49.6]} 25... gxf5 {[%clk 0:01:05.4]} 26. Rxf5 {[%clk 0:01:44.2]}
26... Ng6 {[%clk 0:01:02.1]} 27. Rhf1 {[%clk 0:01:29.3]} 27... Qe6 {[%clk
0:00:48.6]} 28. R5f3 {[%clk 0:00:46]} 28... Qxh3 {[%clk 0:00:42]} 29. Rxh3
{[%clk 0:00:46.9]} 29... Bf4 {[%clk 0:00:38.3]} 30. Rh5 {[%clk 0:00:25.3]} 30...
Bd6 {[%clk 0:00:31.2]} 31. a3 {[%clk 0:00:22.9]} 31... Be7 {[%clk 0:00:31.4]}
32. Kc2 {[%clk 0:00:20.5]} 32... Rg4 {[%clk 0:00:30.7]} 33. Re1 {[%clk
0:00:20.5]} 33... Bxg5 {[%clk 0:00:28]} 34. Re8+ {[%clk 0:00:20.4]} 34... Kg7
{[%clk 0:00:22.7]} 35. Rb8 {[%clk 0:00:19.8]} 35... h6 {[%clk 0:00:20.5]} 36.
Rxb7+ {[%clk 0:00:19.6]} 36... Kf6 {[%clk 0:00:21]} 37. Rc7 {[%clk 0:00:18.8]}
37... Rg2+ {[%clk 0:00:20.5]} 38. Kb3 {[%clk 0:00:18.6]} 38... Nf4 {[%clk
0:00:14.6]} 39. Rxc6+ {[%clk 0:00:16.4]} 39... Kf5 {[%clk 0:00:14.2]} 40. Rh1
{[%clk 0:00:15.8]} 40... h5 {[%clk 0:00:14]} 41. Rxa6 {[%clk 0:00:13.9]} 41...
h4 {[%clk 0:00:14.2]} 42. a4 {[%clk 0:00:14.1]} 42... h3 {[%clk 0:00:14.3]} 43.
a5 {[%clk 0:00:12.9]} 43... h2 {[%clk 0:00:11.5]} 44. Ra8 {[%clk 0:00:13.1]}
44... Bh4 {[%clk 0:00:11.4]} 45. Rh8 {[%clk 0:00:11.5]} 45... Bg3 {[%clk
0:00:11.7]} 46. a6 {[%clk 0:00:11.8]} 46... Ne6 {[%clk 0:00:11.3]} 47. a7 {[%clk
0:00:11.1]} 47... Nc7 {[%clk 0:00:11.6]} 48. Ba5 {[%clk 0:00:10.9]} 48... Na8
{[%clk 0:00:10.8]} 49. Rxa8 {[%clk 0:00:10.6]} 49... Rg1 {[%clk 0:00:11]} 50.
Rf8+ {[%clk 0:00:10.6]} 50... Ke4 {[%clk 0:00:10.1]} 51. Rxh2 {[%clk 0:00:10.7]}
51... Bxh2 {[%clk 0:00:08.7]} 52. a8=Q {[%clk 0:00:11.1]} 52... Rg3+ {[%clk
0:00:08.8]} 53. Bc3 {[%clk 0:00:11.1]} 53... Kd3 {[%clk 0:00:05]} 54. Qa6+
{[%clk 0:00:09.9]} 54... Ke3 {[%clk 0:00:05]} 55. Qf1 {[%clk 0:00:08.5]} 55...
Bg1 {[%clk 0:00:03.9]} 56. Re8# {[%clk 0:00:08.3]} 1-0